{"text_format":"1","workbook":"xlsx","n_sheets":6,"sheets":["INFO","Content","0_Respondent_Details","1_Current_system","2_Costs","3_Benefits"],"not_rendered":{"charts":0,"images":2,"macros":1,"external_links":0,"defined_names":3,"comments":0,"pivot_tables":0},"unopened":[],"bounds":{"document_bytes":16777216,"sheet_cells":100000,"rows_first":2000,"rows_last":500,"rows_between":2000,"halvings":0,"cell_chars":16384,"cell_head_chars":4096},"cells_cut":0,"cells_raw":0,"read":"whole","date_system":"1900"}

{"sheet":"INFO","index":0,"n_rows":21,"n_cols":4,"rows_kept":21,"cut":false,"hidden":false,"merged":[[9,1,16,11],[20,1,40,11]]}
[null,"Cost Benefit Analysis for Electricity Balancing - ISP harmonisation methodology"]
[]
[]
[]
[]
[null,"Final version",null,"2015-11-13"]
[]
[null,"Statement of confidentiality"]
[]
[null,"\nENTSO-E will treat all information provided by individual stakeholders as part of the survey as confidential.  Information gathered through the survey may be published in an aggregated form, e.g. by stakeholder group and by country.\n"]
[]
[]
[]
[]
[]
[]
[]
[]
[null,"Description "]
[]
[null,"The NC EB requires all TSOs to develop a proposal to harmonise the main features of imbalance settlement,  subject to approval by all NRAs. However, the Imbalance Settlement Period duration falls outside this proposal and will be drafted into the final version of the NC EB.  ACER has reviewed the draft NC EB and has proposed that the Imbalance Settlement Period duration be harmonised at 15 minutes.  ACER also proposes that its recommendation on the Imbalance Settlement Period is assessed by a cost benefit analysis to be undertaken by ENTSO-E before the NC EN enters the Comitology process.  \n\nThis questionnaire serve to assess the cost-benefit ratio of different planning cases for the introduction of the harmonised Imbalance Settlement Periods.\n\nAdditional guidance on this questionnaire is provided in: \n\n\"Cost Benefit Analysis for Imbalance Settlement Period Harmonisation\nA GUIDEBOOK PREPARED FOR ENTSO-E\"\n"]

{"sheet":"Content","index":1,"n_rows":31,"n_cols":7,"rows_kept":31,"cut":false,"hidden":false,"merged":[]}
[null,"Cost Benefit Analysis for Electricity Balancing - ISP harmonisation methodology"]
[]
[]
[]
[null,"Structure of the questionnaire"]
[]
[null,"Section","Subsection",null,"Elements",null,"go to worksheet"]
[null,0,null,null,"Respondent details",null,"Link"]
[null,1,null,null,"Description of status quo",null,"Link"]
[null,null,1.1000000000000001,null,{"$f":"'1_Current_system'!D7","v":"Imbalance settlement (and physical operation of the network)"}]
[null,null,1.2,null,{"$f":"'1_Current_system'!D13","v":"Balancing and ancilliary service products"}]
[null,null,1.2,null,{"$f":"'1_Current_system'!D21","v":"Metering"}]
[null,2,null,null,"Costs of ISP Harmonisation",null,"Link"]
[null,null,2.1,null,"Trading platforms"]
[null,null,2.2000000000000002,null,"Metering and notification systems"]
[null,null,2.2999999999999998,null,"Scheduling and settlement"]
[null,null,2.4,null,"Billing systems"]
[null,null,2.5,null,"BRP forecasting, trading and scheduling"]
[null,null,2.6,null,"Documentation"]
[null,null,2.7,null,"Network related costs"]
[null,null,2.8,null,"other costs"]
[null,3,null,null,"Benefits of ISP Harmonisation",null,"Link"]
[null,null,"3.1",null,"Reduced balancing costs"]
[null,null,"3.2",null,"Increased secondary trading volumes"]
[null,null,"3.3",null,"Improved investment outcomes"]
[null,null,"3.4",null,"Improved power plant dispatch"]
[null,null,"3.5",null,"Frequency quality"]
[null,null,"3.6",null,"Other benefits"]
[null,null,"3.7",null,"Participation of renewables"]
[null,null,"3.8",null,"Ensuring operational security"]
[null,null,"3.9",null,"Pass / fail criteria"]

{"sheet":"0_Respondent_Details","index":2,"n_rows":162,"n_cols":14,"rows_kept":162,"cut":false,"hidden":false,"merged":[[22,7,22,8],[23,7,23,8],[24,7,24,8],[11,7,11,8],[29,1,31,5],[17,7,17,8],[18,7,18,8],[19,7,19,8],[20,7,20,8],[21,7,21,8],[7,7,7,8],[8,7,8,8],[9,7,9,8],[10,7,10,8],[16,7,16,8],[12,7,12,8],[13,7,13,8],[14,7,14,8],[15,7,15,8]]}
[0,"Details about respondent"]
[]
[]
[]
[]
[null,"Geographic scope"]
[]
[null,0.1,null,"Geographic scope",null,"Please enter",null,"Comment"]
[null,null,"0.1.1","Plese select the geographic area which this questionnarie refers to ",null,"DE"]
[null,null,"0.1.2","Please enter the currency used in this survey",null,"EUR"]
[null,null,"0.1.3","Optional: exchange rate"]
[null,null,"0.1.4","Inflation expectation (%/a)"]
[null,null,null,2017]
[null,null,null,2018]
[null,null,null,2019]
[null,null,null,2020]
[null,null,null,2021]
[null,null,null,2022]
[null,null,null,2023]
[null,null,null,2024]
[null,null,null,2025]
[null,null,null,2026]
[null,null,null,2027]
[null,null,null,2028]
[null,null,null,2029]
[null,null,null,2030]
[]
[null,"Business characteristics"]
[]
[null,"Please specify which role best describes your business activity. If you select multiple roles, please specifiy how costs and benefits of the ISP-harmonisation allocate to the different activities (by %). Alternatively, please feel free to submit one questionnair for each of your acitivity."]
[]
[]
[null,null,null,null,null,null,null,"Must add up to 100%","Must add up to 100%"]
[null,0.2,null,"Business activity",null,"Plese select",null,"Allocation of benefits","Allocation of costs ",null,null,"Unit",null,"Comment"]
[null,null,"0.2.1","Aggregator",null,"no",null,0,0,null,null,"%",null,"please specify…"]
[null,null,"0.2.2","Broker",null,"no",null,0,0,null,null,"%"]
[null,null,"0.2.3","Data provider",null,"no",null,0,0,null,null,"%"]
[null,null,"0.2.4","DSO",null,"no",null,0,0,null,null,"%"]
[null,null,"0.2.5","End consumer (metered)",null,"no",null,0,0,null,null,"%"]
[null,null,"0.2.6","Generator (metered)",null,"no",null,0,0,null,null,"%"]
[null,null,"0.2.7","Imbalance Settlement Agency (non-TSO)",null,"no",null,0,0,null,null,"%"]
[null,null,"0.2.8","Market operator",null,"no",null,0,0,null,null,"%"]
[null,null,"0.2.9","Meter provider",null,"no",null,0,0,null,null,"%"]
[null,null,"0.2.10","Metering service provider",null,"no",null,0,0,null,null,"%"]
[null,null,"0.2.11","NRA",null,"no",null,0,0,null,null,"%"]
[null,null,"0.2.12","Power exchange",null,"no",null,0,0,null,null,"%"]
[null,null,"0.2.13","Retail supplier",null,"no",null,0,0,null,null,"%"]
[null,null,"0.2.14","Trader",null,"no",null,0,0,null,null,"%"]
[null,null,"0.2.15","TSO",null,"no",null,0,0,null,null,"%"]
[null,null,"0.2.16","Other (please specify)",null,"no",null,0,0,null,null,"%"]
[]
[null,null,null,null,null,null,null,{"$f":"SUM(H35:H50)","v":0},{"$f":"SUM(I35:I50)","v":0}]
[null,"The following questions are used to scale your responses for costs and benefits of an ISP harmonisaiton to country level."]
[]
[null,0.3,null,"Energy trades",null,"Plese select",null,"Day-ahead","Intraday",null,null,"Unit",null,"Comment"]
[null,null,"0.3.1","Do you trade power on power exchanges or over the counter?",null,"no",null,null,null,null,null,null,null,"please specify…"]
[null,null,"0.3.2","Number of trades",null,null,null,null,null,null,null,"#"]
[null,null,"0.3.3","Traded volumes (MWh)",null,null,null,null,null,null,null,"MWh"]
[null,null,"0.3.4","Traded volumes (% of market)",null,null,null,null,null,null,null,"%"]
[]
[null,0.4,null,"Imbalance settlements",null,"Plese select",null,null,null,null,null,"Unit",null,"Comment"]
[null,null,"0.4.1","Are you involved with imbalance settlements (either as a balance-responsible party or imbalance settlement agency) ?",null,"no",null,null,null,null,null,null,null,"please specify…"]
[null,null,"0.4.2","Number of settlement transactions",null,null,null,null,null,null,null,"#"]
[null,null,"0.4.3","Settled volumes (MWh)",null,null,null,null,null,null,null,"MWh"]
[null,null,"0.4.4","Settled volumes (% of market)",null,null,null,null,null,null,null,"%"]
[]
[null,0.5,null,"Reserve power",null,"Plese select",null,"Primary reserve","Secondary reserve","Tertiary reserve",null,"Unit",null,"Comment"]
[null,null,"0.5.1","Do you offer reserve power?",null,"no",null,null,null,null,null,null,null,"please specify…"]
[null,null,"0.5.2","Number of trades",null,null,null,null,null,null,null,"#"]
[null,null,"0.5.3","Average bid (MW)",null,null,null,null,null,null,null,"MW"]
[null,null,"0.5.4","Share of volumes (% of market)",null,null,null,null,null,null,null,"%"]
[]
[null,0.6,null,"Generation assets",null,"Plese select",null,"Assets connected to transmission network","Assets connected to distribution network",null,null,"Unit",null,"Comment"]
[null,null,"0.6.1","Do you own or operate generation assets?",null,"no",null,null,null,null,null,null,null,"please specify…"]
[null,null,"0.6.2","Number of generation assets (2014)",null,null,null,null,null,null,null,"#"]
[null,null,"0.6.3","Number of generation assets (% of market)",null,null,null,null,null,null,null,"%"]
[null,null,"0.6.4","Installed net generation capacity (MW)",null,null,null,null,null,null,null,"MW"]
[null,null,"0.6.5","Installed net generation capacity (% of market)",null,null,null,null,null,null,null,"%"]
[null,null,"0.6.6","Meter read at ISP duration",null,"no"]
[]
[null,0.7,null,"Network activity",null,"Plese select",null,"Distribution network","Transmission network",null,null,"Unit",null,"Comment"]
[null,null,"0.7.1","Do you own or operate a power network?",null,"no",null,null,null,null,null,null,null,"please specify…"]
[null,null,"0.7.2","Number of exit points (#)",null,null,null,null,null,null,null,"#"]
[null,null,"0.7.3","Number of exit points (% of network in the relevant market area)",null,null,null,null,null,null,null,"%"]
[null,null,"0.7.4","Number of meters (#)",null,null,null,null,null,null,null,"#"]
[null,null,"0.7.5","Number of meters (% of network in the relevant market area)",null,null,null,null,null,null,null,"%"]
[]
[null,0.8,null,"Retail supplier",null,"Plese select",null,"Meters able to read at ISP scale","Meters not able to read at ISP scale","Customers without a specific meter",null,"Unit",null,"Comment"]
[null,null,"0.8.1","Do you operate a  retail supply business?",null,"no",null,null,null,null,null,null,null,"please specify…"]
[null,null,"0.8.2","Number of customers (#)",null,null,null,null,null,null,null,"#"]
[null,null,"0.8.3","Number of customers (%)",null,null,null,null,null,null,null,"%"]
[]
[null,0.9,null,"End-consumption",null,"Plese select",null,"Transmission network","Distribution network",null,null,"Unit",null,"Comment"]
[null,null,"0.9.1","End-consumer of electricity",null,"no",null,null,null,null,null,null,null,"please specify…"]
[null,null,"0.9.2","Settling of imbalances",null,null,null,null,null,null,null,"A / B"]
[null,null,"0.9.3","Number of ISP meter (#)",null,null,null,null,null,null,null,"#"]
[null,null,"0.9.4","Number of ISP meter (%)",null,null,null,null,null,null,null,"%"]
[null,null,"0.9.5","Number of non- ISP meter (#)",null,null,null,null,null,null,null,"#"]
[null,null,"0.9.6","Number of non- ISP meter (%)",null,null,null,null,null,null,null,"%"]
[null,null,"0.9.7","Annual energy offtake (MWh)",null,null,null,null,null,null,null,"MWh"]
[null,null,"0.9.8","Annual energy offtake (%)",null,null,null,null,null,null,null,"%"]
[]
[null,"0.10",null,"Aggregators",null,"Plese select",null,"Size of portfolio",null,null,null,"Unit",null,"Comment"]
[null,null,"0.10.1","Are you active as an aggregator on the wholesale market for power?",null,"no",null,null,null,null,null,null,null,"please specify…"]
[null,null,"0.10.2","Size of portfolio (MWh)",null,null,null,null,null,null,null,"MWh"]
[null,null,"0.10.3","Size of portfolio (%)",null,null,null,null,null,null,null,"%"]
[null,null,"0.10.4","Size of portfolio (MW)",null,null,null,null,null,null,null,"MW"]
[null,null,"0.10.5","Size of portolio (%)",null,null,null,null,null,null,null,"%"]
[]
[null,"0.11",null,"Brokers and Power exchanges",null,"Plese select",null,"Day-ahead","Intraday",null,null,"Unit",null,"Comment"]
[null,null,"0.11.1","Are you active as a broker or a power exchange?",null,"no",null,null,null,null,null,null,null,"please specify…"]
[null,null,"0.11.2","Number of trades (#)",null,null,null,null,null,null,null,"# / MWh"]
[null,null,"0.11.3","Number of trades (%)",null,null,null,null,null,null,null,"%"]
[null,null,"0.11.4","Traded volume (MWh)",null,null,null,null,null,null,null,"MWh"]
[null,null,"0.11.5","Traded volume (%)",null,null,null,null,null,null,null,"%"]
[]
[]
[]
[]
[]
[]
[]
[]
[]
[]
[]
[]
[]
[null,"List of countries",null,null,null,"list of currencies"]
[null,"AT",null,null,null,"BGN"]
[null,"BE",null,null,null,"CHF"]
[null,"BG",null,null,null,"CZK"]
[null,"CH",null,null,null,"DKK"]
[null,"CY",null,null,null,"EUR"]
[null,"CZ",null,null,null,"GBP"]
[null,"DE",null,null,null,"HRK"]
[null,"DK",null,null,null,"HUF"]
[null,"EE",null,null,null,"ISK"]
[null,"EL",null,null,null,"LTL"]
[null,"ES",null,null,null,"NOK"]
[null,"FI",null,null,null,"PLN"]
[null,"FR",null,null,null,"RON"]
[null,"GB",null,null,null,"SEK"]
[null,"HR"]
[null,"HU"]
[null,"IE"]
[null,"IT"]
[null,"LI"]
[null,"LT"]
[null,"LU"]
[null,"LV"]
[null,"MT"]
[null,"NI"]
[null,"NL"]
[null,"NO"]
[null,"PL"]
[null,"PT"]
[null,"RO"]
[null,"SE"]
[null,"SI"]
[null,"SK"]
[null,"UK"]

{"sheet":"1_Current_system","index":3,"n_rows":31,"n_cols":7,"rows_kept":31,"cut":false,"hidden":false,"merged":[]}
[1,"Defintion of status quo (counterfactual)"]
[]
[]
[]
[]
[null,"Sub-Section","Element",null,null,null,"Comment"]
[null,1.1000000000000001,null,"Imbalance settlement (and physical operation of the network)"]
[null,null,"1.1.1",null,"Current ISP (minutes)"]
[null,null,"1.1.2",null,"Setting of imbalance prices"]
[null,null,"1.1.3",null,"Gate closure time"]
[null,null,"1.1.4",null,"Granularity of Final Physical Notifications (Minutes)"]
[]
[null,1.2,null,"Balancing and ancilliary service products"]
[null,null,"1.2.1",null,"Procurement of balancing products"]
[null,null,"1.2.2",null,"Timescale of product delivery"]
[null,null,"1.2.3",null,"Duration of the products"]
[null,null,"1.2.4",null,"Participation rules"]
[null,null,"1.2.5",null,"Pre-gate closure balancing action by the TSO"]
[null,null,"1.2.6",null,"Non-monetary balancing incentives"]
[]
[null,1.3,null,"Metering"]
[null,null,"1.3.1",null,"Roll-out of smart meters"]
[null,null,"a)",null,"Whether a decision has been made"]
[null,null,"b)",null,"Target groups"]
[null,null,"c)",null,"Numbers of meters to replaced under 100% roll-out"]
[null,null,"d)",null,"Numbers of meters to reconfigure remotely under 100% roll-out"]
[null,null,"e)",null,"Target penetration rate at the end of the roll-out"]
[null,null,"1.3.2",null,"Granularity of smart metering"]
[null,null,"1.3.3",null,"Location of ISP meters"]
[null,null,"1.3.4",null,"Timeframe of meter replacement (years)"]
[null,null,"1.3.5",null,"Timeframe of meter calibration (months)"]

{"sheet":"2_Costs","index":4,"n_rows":48,"n_cols":75,"rows_kept":48,"cut":false,"hidden":false,"merged":[[4,53,4,55],[4,56,4,58],[4,17,4,19],[4,65,4,67],[3,14,3,22],[4,62,4,64],[4,68,4,70],[4,14,4,16],[4,20,4,22],[3,26,3,34],[4,26,4,28],[4,29,4,31],[4,32,4,34],[3,38,3,46],[4,38,4,40],[4,41,4,43],[4,44,4,46],[3,62,3,70],[3,50,3,58],[4,50,4,52]]}
[2,"Costs of ISP Harmonisation"]
[]
[]
[null,null,null,null,null,null,null,null,null,null,null,null,null,null,"Upfront CAPEX 2017",null,null,null,null,null,null,null,null,null,null,null,"Upfront CAPEX 2018",null,null,null,null,null,null,null,null,null,null,null,"Upfront CAPEX 2019",null,null,null,null,null,null,null,null,null,null,null,"Ongoing OPEX 2020 ",null,null,null,null,null,null,null,null,null,null,null,"Ongoing OPEX 2030"]
[null,null,null,null,null,null,null,null,null,null,null,null,null,null,"Introduction of 30 minutes ISP duration",null,null,"Introduction of 15 minutes ISP duration",null,null,"Introduction of 5 minutes ISP duration",null,null,null,null,null,"Introduction of 30 minutes ISP duration",null,null,"Introduction of 15 minutes ISP duration",null,null,"Introduction of 5 minutes ISP duration",null,null,null,null,null,"Introduction of 30 minutes ISP duration",null,null,"Introduction of 15 minutes ISP duration",null,null,"Introduction of 5 minutes ISP duration",null,null,null,null,null,"Introduction of 30 minutes ISP duration",null,null,"Introduction of 15 minutes ISP duration",null,null,"Introduction of 5 minutes ISP duration",null,null,null,null,null,"Introduction of 30 minutes ISP duration",null,null,"Introduction of 15 minutes ISP duration",null,null,"Introduction of 5 minutes ISP duration"]
[null,"Sub-Section","Element",null,null,null,"Assumptions",null,"Unit",null,"Depreciation period for upfront investments (CAPEX)",null,"Unit",null,"Lower","Central","Upper","Lower","Central","Upper","Lower","Central","Upper",null,"Unit",null,"Lower","Central","Upper","Lower","Central","Upper","Lower","Central","Upper",null,"Unit",null,"Lower","Central","Upper","Lower","Central","Upper","Lower","Central","Upper",null,"Unit",null,"Lower","Central","Upper","Lower","Central","Upper","Lower","Central","Upper",null,"Unit",null,"Lower","Central","Upper","Lower","Central","Upper","Lower","Central","Upper",null,"Comment",null,"Introduction of 10 minutes ISP duration"]
[null,2.1,null,{"$f":"Content!$E$14","v":"Trading platforms"}]
[null,null,"2.1.1",null,"Update to systems and processes to support trading systems",null,null,null,"Years",null,null,null,{"$f":"currency","v":"EUR"},null,null,null,null,null,null,null,null,null,null,null,{"$f":"currency","v":"EUR"},null,null,null,null,null,null,null,null,null,null,null,{"$f":"currency","v":"EUR"},null,null,null,null,null,null,null,null,null,null,null,{"$f":"currency","v":"EUR"},null,null,null,null,null,null,null,null,null,null,null,{"$f":"currency","v":"EUR"}]
[null,null,"2.1.2",null,"Development of new trading algorithms",null,null,null,"Years",null,null,null,{"$f":"currency","v":"EUR"},null,null,null,null,null,null,null,null,null,null,null,{"$f":"currency","v":"EUR"},null,null,null,null,null,null,null,null,null,null,null,{"$f":"currency","v":"EUR"},null,null,null,null,null,null,null,null,null,null,null,{"$f":"currency","v":"EUR"},null,null,null,null,null,null,null,null,null,null,null,{"$f":"currency","v":"EUR"}]
[null,null,"2.1.3",null,"other (please specificy)",null,null,null,"Years",null,null,null,{"$f":"currency","v":"EUR"},null,null,null,null,null,null,null,null,null,null,null,{"$f":"currency","v":"EUR"},null,null,null,null,null,null,null,null,null,null,null,{"$f":"currency","v":"EUR"},null,null,null,null,null,null,null,null,null,null,null,{"$f":"currency","v":"EUR"},null,null,null,null,null,null,null,null,null,null,null,{"$f":"currency","v":"EUR"}]
[]
[null,2.2000000000000002,null,{"$f":"Content!E15","v":"Metering and notification systems"}]
[null,null,"2.2.1",null,"Cost of incremental changes to metering systems and processes to provide shorter timeline data relating to metering",null,null,null,"Years",null,null,null,{"$f":"currency","v":"EUR"},null,null,null,null,null,null,null,null,null,null,null,{"$f":"currency","v":"EUR"},null,null,null,null,null,null,null,null,null,null,null,{"$f":"currency","v":"EUR"},null,null,null,null,null,null,null,null,null,null,null,{"$f":"currency","v":"EUR"},null,null,null,null,null,null,null,null,null,null,null,{"$f":"currency","v":"EUR"}]
[null,null,"a)",null,"for meters on the transmission network",null,null,null,"Years",null,null,null,{"$f":"currency","v":"EUR"},null,null,null,null,null,null,null,null,null,null,null,"EUR",null,null,null,null,null,null,null,null,null,null,null,"EUR",null,null,null,null,null,null,null,null,null,null,null,"EUR",null,null,null,null,null,null,null,null,null,null,null,"EUR"]
[null,null,"b)",null,"for meters on distribution network",null,null,null,"Years",null,null,null,"EUR",null,null,null,null,null,null,null,null,null,null,null,"EUR",null,null,null,null,null,null,null,null,null,null,null,"EUR",null,null,null,null,null,null,null,null,null,null,null,"EUR",null,null,null,null,null,null,null,null,null,null,null,"EUR"]
[null,null,"2.2.2",null,"Cost of incremental change to processes required to provide shorter timeline data relating to providing contract volume notifications for each ISP to the operator of the settlement system",null,null,null,"Years",null,null,null,"EUR",null,null,null,null,null,null,null,null,null,null,null,"EUR",null,null,null,null,null,null,null,null,null,null,null,"EUR",null,null,null,null,null,null,null,null,null,null,null,"EUR",null,null,null,null,null,null,null,null,null,null,null,"EUR"]
[null,null,"2.2.3",null,"Cost of incremental change to processes required to provide shorter timeline data relating to physical notifications of physical generation and consumption plans to the TSO (or other service provider)  prior to gate closure",null,null,null,"Years",null,null,null,"EUR",null,null,null,null,null,null,null,null,null,null,null,"EUR",null,null,null,null,null,null,null,null,null,null,null,"EUR",null,null,null,null,null,null,null,null,null,null,null,"EUR",null,null,null,null,null,null,null,null,null,null,null,"EUR"]
[null,null,"2.2.4",null,"Change to systems and processes used to allocate volumes associated with non-ISP based metering to ISPs",null,null,null,"Years",null,null,null,"EUR",null,null,null,null,null,null,null,null,null,null,null,"EUR",null,null,null,null,null,null,null,null,null,null,null,"EUR",null,null,null,null,null,null,null,null,null,null,null,"EUR",null,null,null,null,null,null,null,null,null,null,null,"EUR"]
[null,null,"2.2.5",null,"other (please specificy)",null,null,null,"Years",null,null,null,"EUR",null,null,null,null,null,null,null,null,null,null,null,"EUR",null,null,null,null,null,null,null,null,null,null,null,"EUR",null,null,null,null,null,null,null,null,null,null,null,"EUR",null,null,null,null,null,null,null,null,null,null,null,"EUR"]
[]
[null,2.2999999999999998,null,{"$f":"Content!E16","v":"Scheduling and settlement"}]
[null,null,"2.3.1",null,"Change to the systems and processes used to schedule plant",null,null,null,"Years",null,null,null,{"$f":"currency","v":"EUR"},null,null,null,null,null,null,null,null,null,null,null,{"$f":"currency","v":"EUR"},null,null,null,null,null,null,null,null,null,null,null,{"$f":"currency","v":"EUR"},null,null,null,null,null,null,null,null,null,null,null,{"$f":"currency","v":"EUR"},null,null,null,null,null,null,null,null,null,null,null,{"$f":"currency","v":"EUR"}]
[null,null,"2.3.2",null,"Change to central systems and processes to calculate and settle imbalances to deal with shorter ISP, and change to participant systems which interact with these",null,null,null,"Years",null,null,null,{"$f":"currency","v":"EUR"},null,null,null,null,null,null,null,null,null,null,null,{"$f":"currency","v":"EUR"},null,null,null,null,null,null,null,null,null,null,null,{"$f":"currency","v":"EUR"},null,null,null,null,null,null,null,null,null,null,null,{"$f":"currency","v":"EUR"},null,null,null,null,null,null,null,null,null,null,null,{"$f":"currency","v":"EUR"}]
[null,null,"2.3.3",null,"Change to systems and processes to facilitate settlement of trades (bilaterally and on exchange) on a shorter ISP basis",null,null,null,"Years",null,null,null,{"$f":"currency","v":"EUR"},null,null,null,null,null,null,null,null,null,null,null,{"$f":"currency","v":"EUR"},null,null,null,null,null,null,null,null,null,null,null,{"$f":"currency","v":"EUR"},null,null,null,null,null,null,null,null,null,null,null,{"$f":"currency","v":"EUR"},null,null,null,null,null,null,null,null,null,null,null,{"$f":"currency","v":"EUR"}]
[null,null,"2.3.4",null,"Data publication costs ",null,null,null,"Years",null,null,null,{"$f":"currency","v":"EUR"},null,null,null,null,null,null,null,null,null,null,null,{"$f":"currency","v":"EUR"},null,null,null,null,null,null,null,null,null,null,null,{"$f":"currency","v":"EUR"},null,null,null,null,null,null,null,null,null,null,null,{"$f":"currency","v":"EUR"},null,null,null,null,null,null,null,null,null,null,null,{"$f":"currency","v":"EUR"}]
[null,null,"2.3.5",null,"other (please specificy)",null,null,null,"Years",null,null,null,{"$f":"currency","v":"EUR"},null,null,null,null,null,null,null,null,null,null,null,{"$f":"currency","v":"EUR"},null,null,null,null,null,null,null,null,null,null,null,{"$f":"currency","v":"EUR"},null,null,null,null,null,null,null,null,null,null,null,{"$f":"currency","v":"EUR"},null,null,null,null,null,null,null,null,null,null,null,{"$f":"currency","v":"EUR"}]
[]
[null,2.4,null,{"$f":"Content!$E$17","v":"Billing systems"}]
[null,null,"2.4.1",null,"Change to systems and processes to facilitate billing of customers based on shorter ISP basis (where relevant)",null,null,null,"Years",null,null,null,{"$f":"currency","v":"EUR"},null,null,null,null,null,null,null,null,null,null,null,{"$f":"currency","v":"EUR"},null,null,null,null,null,null,null,null,null,null,null,{"$f":"currency","v":"EUR"},null,null,null,null,null,null,null,null,null,null,null,{"$f":"currency","v":"EUR"},null,null,null,null,null,null,null,null,null,null,null,{"$f":"currency","v":"EUR"}]
[null,null,"2.4.2",null,"other (please specificy)",null,null,null,"Years",null,null,null,"EUR",null,null,null,null,null,null,null,null,null,null,null,"EUR",null,null,null,null,null,null,null,null,null,null,null,"EUR",null,null,null,null,null,null,null,null,null,null,null,"EUR",null,null,null,null,null,null,null,null,null,null,null,"EUR"]
[null,null,null,null,null,null,null,null,"Years",null,null,null,"EUR",null,null,null,null,null,null,null,null,null,null,null,"EUR",null,null,null,null,null,null,null,null,null,null,null,"EUR",null,null,null,null,null,null,null,null,null,null,null,"EUR",null,null,null,null,null,null,null,null,null,null,null,"EUR"]
[null,2.5,null,{"$f":"Content!$E$18","v":"BRP forecasting, trading and scheduling"},null,null,null,null,"Years",null,null,null,"EUR",null,null,null,null,null,null,null,null,null,null,null,"EUR",null,null,null,null,null,null,null,null,null,null,null,"EUR",null,null,null,null,null,null,null,null,null,null,null,"EUR",null,null,null,null,null,null,null,null,null,null,null,"EUR"]
[null,null,"2.5.1",null,"Change to systems and processes to facilitate forecasting and trading on a shorter ISP basis",null,null,null,"Years",null,null,null,"EUR",null,null,null,null,null,null,null,null,null,null,null,"EUR",null,null,null,null,null,null,null,null,null,null,null,"EUR",null,null,null,null,null,null,null,null,null,null,null,"EUR",null,null,null,null,null,null,null,null,null,null,null,"EUR"]
[null,null,"2.5.2",null,"other (please specificy)",null,null,null,"Years",null,null,null,"EUR",null,null,null,null,null,null,null,null,null,null,null,"EUR",null,null,null,null,null,null,null,null,null,null,null,"EUR",null,null,null,null,null,null,null,null,null,null,null,"EUR",null,null,null,null,null,null,null,null,null,null,null,"EUR"]
[]
[null,2.6,null,{"$f":"Content!$E$19","v":"Documentation"}]
[null,null,"2.6.1",null,"Change to market documentation - centralised codes etc.",null,null,null,"Years",null,null,null,{"$f":"currency","v":"EUR"},null,null,null,null,null,null,null,null,null,null,null,{"$f":"currency","v":"EUR"},null,null,null,null,null,null,null,null,null,null,null,{"$f":"currency","v":"EUR"},null,null,null,null,null,null,null,null,null,null,null,{"$f":"currency","v":"EUR"},null,null,null,null,null,null,null,null,null,null,null,{"$f":"currency","v":"EUR"},null,null,null,null,null,null,null,null,null,null,null,"please clarify who will incur costs"]
[null,null,"2.6.2",null,"Change to market documentation - decentralised contracts etc.",null,null,null,"Years",null,null,null,{"$f":"currency","v":"EUR"},null,null,null,null,null,null,null,null,null,null,null,{"$f":"currency","v":"EUR"},null,null,null,null,null,null,null,null,null,null,null,{"$f":"currency","v":"EUR"},null,null,null,null,null,null,null,null,null,null,null,{"$f":"currency","v":"EUR"},null,null,null,null,null,null,null,null,null,null,null,{"$f":"currency","v":"EUR"}]
[null,null,"2.6.3",null,"other (please specificy)",null,null,null,"Years",null,null,null,{"$f":"currency","v":"EUR"},null,null,null,null,null,null,null,null,null,null,null,{"$f":"currency","v":"EUR"},null,null,null,null,null,null,null,null,null,null,null,{"$f":"currency","v":"EUR"},null,null,null,null,null,null,null,null,null,null,null,{"$f":"currency","v":"EUR"},null,null,null,null,null,null,null,null,null,null,null,{"$f":"currency","v":"EUR"}]
[]
[null,2.7,null,{"$f":"Content!$E$20","v":"Network related costs"}]
[null,null,"2.7.1",null,"DNO and TSO loss procurement costs",null,null,null,"Years",null,null,null,{"$f":"currency","v":"EUR"},null,null,null,null,null,null,null,null,null,null,null,{"$f":"currency","v":"EUR"},null,null,null,null,null,null,null,null,null,null,null,{"$f":"currency","v":"EUR"},null,null,null,null,null,null,null,null,null,null,null,{"$f":"currency","v":"EUR"},null,null,null,null,null,null,null,null,null,null,null,{"$f":"currency","v":"EUR"}]
[null,null,"2.7.2",null,"System optimisation and software costs",null,null,null,"Years",null,null,null,{"$f":"currency","v":"EUR"},null,null,null,null,null,null,null,null,null,null,null,{"$f":"currency","v":"EUR"},null,null,null,null,null,null,null,null,null,null,null,{"$f":"currency","v":"EUR"},null,null,null,null,null,null,null,null,null,null,null,{"$f":"currency","v":"EUR"},null,null,null,null,null,null,null,null,null,null,null,{"$f":"currency","v":"EUR"}]
[null,null,"2.7.3",null,"other (please specificy)",null,null,null,"Years",null,null,null,{"$f":"currency","v":"EUR"},null,null,null,null,null,null,null,null,null,null,null,{"$f":"currency","v":"EUR"},null,null,null,null,null,null,null,null,null,null,null,{"$f":"currency","v":"EUR"},null,null,null,null,null,null,null,null,null,null,null,{"$f":"currency","v":"EUR"},null,null,null,null,null,null,null,null,null,null,null,{"$f":"currency","v":"EUR"},null,null,null,null,null,2.1]
[]
[null,"2.8",null,{"$f":"Content!$E$21","v":"other costs"}]
[null,null,"2.8.1",null,"other (please specificy)",null,null,null,"Years",null,null,null,{"$f":"currency","v":"EUR"},null,null,null,null,null,null,null,null,null,null,null,{"$f":"currency","v":"EUR"},null,null,null,null,null,null,null,null,null,null,null,{"$f":"currency","v":"EUR"},null,null,null,null,null,null,null,null,null,null,null,{"$f":"currency","v":"EUR"},null,null,null,null,null,null,null,null,null,null,null,{"$f":"currency","v":"EUR"}]
[null,null,"2.8.2",null,"other (please specificy)",null,null,null,"Years",null,null,null,{"$f":"currency","v":"EUR"},null,null,null,null,null,null,null,null,null,null,null,{"$f":"currency","v":"EUR"},null,null,null,null,null,null,null,null,null,null,null,{"$f":"currency","v":"EUR"},null,null,null,null,null,null,null,null,null,null,null,{"$f":"currency","v":"EUR"},null,null,null,null,null,null,null,null,null,null,null,{"$f":"currency","v":"EUR"}]

{"sheet":"3_Benefits","index":5,"n_rows":72,"n_cols":35,"rows_kept":72,"cut":false,"hidden":false,"merged":[[70,8,70,14],[36,3,37,3],[71,4,71,6],[7,1,8,1],[43,1,44,1],[43,2,44,2],[7,2,8,2],[9,2,11,2],[9,1,11,1],[26,2,29,2],[43,3,44,3],[43,4,44,4],[12,1,13,1],[12,2,13,2],[12,3,13,3],[12,4,13,4],[26,1,29,1],[26,3,29,3],[26,4,29,4],[14,1,16,1],[17,1,20,1],[21,1,22,1],[30,2,32,2],[30,3,32,3],[30,4,32,4],[36,1,37,1],[58,8,58,14],[38,4,39,4],[38,2,39,2],[38,3,39,3],[30,1,32,1],[38,1,39,1],[50,1,51,1],[50,2,51,2],[50,3,51,3],[50,4,51,4],[7,3,8,3],[56,8,56,14],[57,8,57,14],[14,2,16,2],[14,4,16,4],[14,3,16,3],[17,2,20,2],[17,3,20,3],[17,4,20,4],[21,2,22,2],[9,4,11,4],[9,3,11,3],[21,3,22,3],[21,4,22,4],[36,2,37,2],[36,4,37,4],[3,22,3,30],[4,22,4,24],[4,25,4,27],[4,28,4,30],[7,4,8,4],[4,12,4,14],[3,12,3,20],[4,15,4,17],[4,18,4,20],[71,8,71,14],[45,2,46,2],[45,3,46,3],[45,4,46,4],[45,1,46,1],[67,4,67,6],[58,4,58,6],[68,4,68,6],[66,4,66,6],[61,8,61,14],[62,8,62,14],[66,8,66,14],[68,8,68,14],[65,8,65,14],[62,4,62,6],[59,8,59,14]]}
[3,"Benefits of ISP Harmonisation"]
[]
[]
[null,null,null,null,null,null,null,null,null,null,null,null,"Benefits of ISP harmonisation in 2020",null,null,null,null,null,null,null,null,null,"Benefits of ISP harmonisation in 2030"]
[null,null,null,null,null,null,null,null,null,null,null,null,"Introduction of 30 minutes ISP duration",null,null,"Introduction of 15 minutes ISP duration",null,null,"Introduction of 5 minutes ISP duration",null,null,null,"Introduction of 30 minutes ISP duration",null,null,"Introduction of 15 minutes ISP duration",null,null,"Introduction of 5 minutes ISP duration"]
[null,"Sub-Section","Element",null,null,"Sub-element",null,null,"Assumption",null,"Unit",null,"Lower","Central","Upper","Lower","Central","Upper","Lower","Central","Upper",null,"Lower","Central","Upper","Lower","Central","Upper","Lower","Central","Upper",null,"Comment",null,"Introduction of 10 minutes ISP duration"]
[null,3.1,null,{"$f":"Content!$E$23","v":"Reduced balancing costs"}]
[null,null,"3.1.1",null,"Impact on intraday trading and physical actions undertaken by BRPs and balancing actions undertaken by TSOs","a)","Incremental annual volume of trading and physical balancing actions by BRPs / reduction in balancing actions by TSO",null,null,null,"MWh"]
[null,null,null,null,null,"b)","Average price difference (balancing on intraday vs. imbalance settlement price achieved by TSO)",null,null,null,{"$f":"currency&\"/MWh\"","v":"EUR/MWh"}]
[null,null,"3.1.2",null,"Impact on capacity with-held by the BRP and capacity held in reserve by the TSO","a)","Volume of capacity with-held by BRPs",null,null,null,"MW"]
[null,null,null,null,null,"b)","Average cost of with-holding reserve as BRP relative to cost of holding reserve as a TSO ",null,null,null,{"$f":"currency&\"/MW\"","v":"EUR/MW"}]
[null,null,null,null,null,"c)","Average reduction in reserve capacity by TSO",null,null,null,"MW"]
[null,null,"3.1.3",null,"Cross-border effect","a)","Price discount to be achieved relative to the cost of trading at higher granularity in the local intraday market",null,null,null,{"$f":"currency&\"/MWh\"","v":"EUR/MWh"}]
[null,null,null,null,null,"b)","Reduction in the cost of with-holding capacity for the BRPs ",null,null,null,{"$f":"currency&\"/MW\"","v":"EUR/MW"}]
[null,null,"3.1.4",null,"Impact on prices","a)","Yearly average change in the wholesale price",null,null,null,{"$f":"currency&\"/MWh\"","v":"EUR/MWh"}]
[null,null,null,null,null,"b)","Yearly average change in the balancing price",null,null,null,{"$f":"currency&\"/MWh\"","v":"EUR/MWh"}]
[null,null,null,null,null,"c)","Yearly average change in the imbalance settlement price",null,null,null,{"$f":"currency&\"/MWh\"","v":"EUR/MWh"}]
[null,null,"3.1.5",null,"Impact on entry of BSPs","a)","Total volume of BSP capacity",null,null,null,"MW"]
[null,null,null,null,null,"b)","Impact on average yearly balancing price",null,null,null,{"$f":"currency&\"/MWh\"","v":"EUR/MWh"}]
[null,null,null,null,null,"c)","Impact on average intraday price",null,null,null,{"$f":"currency&\"/MWh\"","v":"EUR/MWh"}]
[null,null,null,null,null,"d)","Yearly volume of balancing actions",null,null,null,"MWh"]
[null,null,"3.1.6",null,"Further impact on balancing","a)","Impact on volumes",null,null,null,"MWh"]
[null,null,null,null,null,"b)","Impact on prices",null,null,null,{"$f":"currency&\"/MWh\"","v":"EUR/MWh"}]
[null,null,"3.1.7",null,"other (please specificy)"]
[]
[null,3.2,null,{"$f":"Content!$E$24","v":"Increased secondary trading volumes"}]
[null,null,"3.2.1",null,"Increased intraday liquidity as a result of BRP actions","a)","Expected increase in volumes bought and volumes sold by BRPs per year ",null,null,null,"MWh"]
[null,null,null,null,null,"b)","Reduction in the bid-ask spread on the intraday market due to this increase in liquidity",null,null,null,{"$f":"currency&\"/MWh\"","v":"EUR/MWh"}]
[null,null,null,null,null,"c)","Impact on net trading fees paid to power exchanges or any other facilitator",null,null,null,{"$f":"currency","v":"EUR"}]
[null,null,null,null,null,"d)","Further impact on prices ",null,null,null,{"$f":"currency&\"/MWh\"","v":"EUR/MWh"}]
[null,null,"3.2.2",null,"Increased intraday liquidity as a result of greater uniformity of information","a)","Expected increase in volumes bought and volumes sold by BRPs per year ",null,null,null,"MWh"]
[null,null,null,null,null,"b)","Reduction in the bid-ask spread on the intraday market due to this increase in liquidity",null,null,null,{"$f":"currency&\"/MWh\"","v":"EUR/MWh"}]
[null,null,null,null,null,"c)","Impact on net trading fees paid to power exchanges or any other facilitator",null,null,null,{"$f":"currency","v":"EUR"}]
[null,null,"3.2.3",null,"other (please specificy)"]
[]
[null,3.3,null,{"$f":"Content!$E$25","v":"Improved investment outcomes"}]
[null,null,"3.3.1",null,"Transfer of revenues from the balancing stream to the wholesale stream ","a)","Impact on volume of new investment",null,null,null,"MW"]
[null,null,null,null,null,"b)","Difference in cost between the new resource and that which would have been installed otherwise",null,null,null,{"$f":"currency&\"/MW\"","v":"EUR/MW"}]
[null,null,"3.3.2",null,"Lower barrier to market entry for some technologies","a)","Impact on volume of new investment",null,null,null,"MW"]
[null,null,null,null,null,"b)","Difference in cost between the new resource and that which would have been installed otherwise",null,null,null,{"$f":"currency&\"/MW\"","v":"EUR/MW"}]
[null,null,"3.3.3",null,"other (please specificy)"]
[]
[null,3.4,null,{"$f":"Content!$E$26","v":"Improved power plant dispatch"}]
[null,null,"3.4.1",null,"More efficient plant dispatch as a result of shorter ISP duration period","a)","Impact on balancing volumes",null,null,null,"MWh"]
[null,null,null,null,null,"b)","Impact on costs",null,null,null,{"$f":"currency&\"/MWh\"","v":"EUR/MWh"}]
[null,null,"3.4.2",null,"More effcient plant dispatch as a result of ISP duration harmonisation","a)","Volumes subject to the impact",null,null,null,"MWh"]
[null,null,null,null,null,"b)","Impact on costs",null,null,null,{"$f":"currency&\"/MWh\"","v":"EUR/MWh"}]
[null,null,"3.4.3",null,"other (please specificy)"]
[]
[null,3.5,null,{"$f":"Content!$E$27","v":"Frequency quality"}]
[null,null,"3.5.2",null,"Improvement in frequency quality as a result of a reduction in ISP duration","a)","Reduction in frequency excursions outside limits",null,null,null,"#"]
[null,null,null,null,null,"b)","Value of improvement in frequency quality, e.g. reduced cost to TSO of managing frequency",null,null,null,{"$f":"currency&\"/MWh\"","v":"EUR/MWh"}]
[]
[null,3.6,null,{"$f":"Content!$E$28","v":"Other benefits"}]
[null,null,"3.6.1",null,"other (please specificy)"]
[]
[null,"Sub-section","Non-Monetary indicator",null,null,null,null,null,"Comment"]
[null,3.7,null,{"$f":"Content!$E$29","v":"Participation of renewables"}]
[null,null,"3.7.1",null,"Reducing ISP duration may  make it easier for RES to participate as a BSP; or  increase exposure of RES to imbalance prices (e.g.increase of RES-E participating in balancing zone)"]
[null,null,"3.7.2",null,"other (please specificy)"]
[]
[null,3.8,null,"Security of supply"]
[null,null,"3.8.1",null,"Harmonising ISP duration may improve operational security (with non-harmonised ISPs, BSPs in long ISP country cannot participate in country with short ISP)  Harmonising ISPs facilitates cross border balancing actions – an efficiency and security of supply issue"]
[null,null,"3.8.2",null,"other (please specificy)"]
[]
[null,3.9,null,"Pass / fail criteria"]
[null,null,"3.9.1",null,"Security of supply (ensuring operational security and the ability of TSOs and BRPs to fulfil their obligations"]
[null,null,"3.9.2",null,"Market design (facilitating demand side participation, facilitating renewable participation, avoiding barriers to entry, non-discrimination and transparency in balancing markets, and ensuring fair, objective and transparent and market based procurement of balancing services)"]
[null,null,"3.9.3",null,"Ability to implement (technical feasibility"]
[]
[null,"Sub-section","Other comments"]
[null,"3.10",null,null,"In your view, what  factors in the operating and market environment would make changing the ISP duration effective and useful and what wider issues are at stake or need addressing to ensure the benefits discussed above will arise? "]